Cogmind - Beta 17.1 @@@ ROGUE MODE // 2026.09.04 @ 14:58:16 Player: Godsword Result: Self-destructed Performance ------------- Evolutions (1) 500 Regions Visited (2) 400 Robots Destroyed (10) 50 Value Destroyed (396) 396 Prototype IDs (0) 0 Alien Tech Used (0) 0 Bonus (0) 0 TOTAL SCORE: 1346 Bonus ------- None Cogmind --------- Core Integrity 400/400 Matter 184/300 Energy 100/100 System Corruption 0% Temperature Cool (0) Movement Hovering (120) Ox1 Location -9/Materials Parts ------- > --- POWER (1) -------- (None) > --- PROPULSION (3) --- Hover Unit > --- UTILITY (3) ------ Small Storage Unit > --- WEAPON (2) ------- Grenade Launcher > --- INVENTORY (8) ---- Targeting Computer ECM Suite Peak State ------------ > --- POWER ------------ Ion Engine > --- PROPULSION ------- Hover Unit Hover Unit > --- UTILITY ---------- Small Storage Unit ECM Suite > --- WEAPON ----------- Grenade Launcher > --- INVENTORY -------- (None) [Rating: 6] Favorites ----------- Power Ion Engine Engine Ion Engine Propulsion Hover Unit Hover Unit Hover Unit Utility Small Storage Unit Device ECM Suite Storage Small Storage Unit Weapon Grenade Launcher Launcher Grenade Launcher Build | -11 -10 -9 ------- Run | Yrd Mat Mat Slots Evolved 2 | . . 2 Power . | . . . Propulsion 1 | . . 1 Utility 1 | . . 1 Weapon . | . . . Parts Attached 6 | . 6 . Power 1 | . 1 . Engine 1 | . 1 . Core . | . . . Reactor . | . . . Propulsion 2 | . 2 . Treads . | . . . Leg . | . . . Wheel . | . . . Hover 2 | . 2 . Flight . | . . . Utility 2 | . 2 . Device 1 | . 1 . Storage 1 | . 1 . Processor . | . . . Hackware . | . . . Protection . | . . . Artifact . | . . . Weapon 1 | . 1 . Energy Gun . | . . . Energy Cannon . | . . . Ballistic Gun . | . . . Ballistic Cannon . | . . . Launcher 1 | . 1 . Special Weapon . | . . . Impact Weapon . | . . . Slashing Weapon . | . . . Piercing Weapon . | . . . Special Melee Weapon . | . . . Unidentified Prototypes . | . . . Parts Lost 1 | . . 1 Power . | . . . Propulsion 1 | . . 1 Utility . | . . . Weapon . | . . . Highest Loss Streak 1 | . . 1 To Critical Strikes . | . . . Average Backups . | . . 1 Power . | . . . Propulsion . | . . . Utility . | . . 1 Weapon . | . . . Tool/Special . | . . . Unused Backups . | . . . Power . | . . . Propulsion . | . . . Utility . | . . . Weapon . | . . . Tool/Special . | . . . Average Slot Usage (%) 34 | . 32 60 Engine 2 | . 2 5 Hover 13 | . 12 22 Device 2 | . 2 11 Storage 3 | . 2 11 Launcher 12 | . 13 11 Peak Build Rating 6 | . 6 6 Average Rating 2 | . 2 4 On Entrance 2 | . . 6 Avg Prop Armor Cover (%) . | . . . Naked Turns 13 | . 13 . Heaviest Build 15 | . 15 15 Greatest Support 12 | 3 12 12 Greatest Overweight (x) 1 | . 1 1 Average Overweight (x) . | . . . Largest Inventory Capacity 8 | 5 8 8 Average Capacity 5 | 5 5 8 Most Carried 2 | . 1 2 Average Carried . | . . 1 Final Capacity 8 | 5 8 8 Final Carried 2 | . 1 2 Class Distribution -------------------- 100% | Mutant Dominant Class ---------------- Mutant | -10/Materials Mutant | -9/Materials Resources | -11 -10 -9 ----------- Run | Yrd Mat Mat Matter Collected 269 | 200 69 . Remotely . | . . . Salvage Created 230 | . 230 . Parts 19 | . 19 . Haulers Intercepted 2 | . 2 . Recyclers Shooed . | . . . Parts Field Recycled . | . . . Retrieved Matter . | . . . Parts Self-Destructed . | . . . Prevented . | . . . Parts Restored . | . . . Kills | -11 -10 -9 ------- Run | Yrd Mat Mat Combat Hostiles Destroyed 3 | . 3 . AOE 3 | . 3 . Classes Destroyed 5 | . 5 . Builder 1 | . 1 . Tunneler 1 | . 1 . Hauler 2 | . 2 . Watcher 3 | . 3 . Grunt 3 | . 3 . Best Kill Streak 7 | . 7 . Combat Bots Only 3 | . 3 . Max Kills in Single Turn 3 | . 3 . Gunslinging . | . . . Exploded 2 | . 2 . Melee . | . . . Uniques/NPCs Destroyed . | . . . Combat | -11 -10 -9 -------- Run | Yrd Mat Mat Hostile Shots Fired 4 | . 2 2 Missed 1 | . . 1 Hits 3 | . 2 1 Projectile 3 | . 2 1 Damage Taken 42 | 3 20 19 Core 13 | 3 10 . Absorbed by Shields . | . . . Core Remaining (%) 96 | 98 94 . Volleys Fired 13 | . 11 2 Largest 1 | . 1 1 Hottest 30 | . 30 30 Shots Fired 13 | . 11 2 Gun . | . . . Cannon . | . . . Launcher 13 | . 11 2 Special . | . . . Kinetic . | . . . Thermal . | . . . Explosive 13 | . 11 2 Electromagnetic . | . . . Robot Hit Streak 3 | . 3 . Robot Miss Streak 1 | . 1 . Penetration Max . | . . . Secondary Targets . | . . . Shots Hit Robots 5 | . 5 . Core Hits 21 | . 21 . Critical Kills . | . . . Critical Parts Destroyed . | . . . Critical Strikes . | . . . Melee Attacks . | . . . Impact . | . . . Slashing . | . . . Piercing . | . . . Sneak Attacks . | . . . Combat Hostiles . | . . . Follow-up Attacks . | . . . Damage Inflicted 801 | 6 779 16 Guns . | . . . Cannons . | . . . Explosions 795 | . 779 16 Melee . | . . . Ramming 6 | 6 . . Kinetic . | . . . Thermal 259 | . 259 . Explosive 328 | . 312 16 Electromagnetic 208 | . 208 . Impact . | . . . Slashing . | . . . Piercing . | . . . Highest Corruption 3 | . 3 . Average Corruption 2 | . 2 . Corruption Purged . | . . . Corruption Blocked . | . . . Overload Shots . | . . . Overflow Damage 114 | . 114 . Projectiles . | . . . Explosions 114 | . 114 . Melee . | . . . Knockbacks 1 | 1 . . Impact 1 | 1 . . Kinetic . | . . . Secondary . | . . . Self-Inflicted Damage 5 | 3 . 2 Shots 1 | . . 1 Rammed 1 | 1 . . Targets Rammed 1 | 1 . . Kicked . | . . . Crushed . | . . . Highest Temperature 5 | . 5 . Average Temperature 5 | . 5 . Received Heat Transfer 12 | . 12 . Siege Activations . | . . . Martial Activations . | . . . Shielding Activations . | . . . Robots Disrupted 1 | . 1 . Combat Hostiles 1 | . 1 . Robots Corrupted . | . . . Combat Hostiles . | . . . Parts Fried . | . . . Impact Corruptions . | . . . Robots Melted . | . . . Combat Hostiles . | . . . Parts Melted . | . . . Heat Transferred 200 | . 200 . Parts Sabotaged . | . . . Parts Stolen . | . . . Parts Stripped . | . . . Power Chain Reactions 1 | . 1 . Alert | -11 -10 -9 ------- Run | Yrd Mat Mat Maximum Alert Level 2 | . 2 1 Low Security (%) 72 | 100 69 85 Level 1 1 | . . 14 Level 2 26 | . 29 . Level 3 . | . . . Level 4 . | . . . Level 5 . | . . . High Security . | . . . Max Security . | . . . Peak Influence 447 | . 447 205 Initial 171 | . . 171 Average 165 | . 173 177 Influence Increases 561 | . 527 34 Destroy 0b10 Robot/C 60 | . 60 . Destroy 0b10 Robot/NC 35 | . 35 . Destroy Leader 20 | . 20 . Disable Machine 345 | . 330 15 Destroy Structure 86 | . 67 19 Lose Combat Pursuer 15 | . 15 . Influence Decreases 366 | . 120 246 Entered New Map 236 | . . 236 Time Decay 120 | . 120 . Lost Part 10 | . . 10 Squads Dispatched 2 | . 2 . Investigation . | . . . Extermination . | . . . Reinforcement 2 | . 2 . Assault . | . . . Garrison . | . . . Intercept . | . . . Searches Triggered . | . . . Construction Impeded . | . . . Haulers Reinforced . | . . . Active Scanning Responses . | . . . Cargo Convoy Interrupts . | . . . Stealth | -11 -10 -9 --------- Run | Yrd Mat Mat Distress Signals 1 | . . 1 Communications Jammed . | . . . Distress Signals . | . . . Times Spotted 8 | . 6 2 Peak Tracking Total 2 | . 2 2 Tactical Retreats 1 | . 1 . Traps | -11 -10 -9 ------- Run | Yrd Mat Mat Traps Triggered 2 | . 2 . Indirectly . | . . . Trap Hack Attempts . | . . . Triggered . | . . . Disarmed . | . . . Reprogrammed . | . . . Reused . | . . . Traps Extracted . | . . . Installed . | . . . Triggered . | . . . Machines | -11 -10 -9 ---------- Run | Yrd Mat Mat Machines Disabled 23 | . 22 1 Max in Single Turn 15 | . 15 1 Machines Repaired . | . . . Machines Dismantled . | . . . Machines Sabotaged . | . . . Overloaded Fab Kills . | . . . Hacking | -11 -10 -9 --------- Run | Yrd Mat Mat Machines Accessed . | . . . Terminals . | . . . Fabricators . | . . . Repair Stations . | . . . Recycling Units . | . . . Scanalyzers . | . . . Garrison Access . | . . . Total Hacks . | . . . Successful . | . . . Failed . | . . . Catastrophic . | . . . Database Lockouts . | . . . Manual . | . . . Terminals . | . . . Fabricators . | . . . Repair Stations . | . . . Recycling Units . | . . . Scanalyzers . | . . . Garrison Access . | . . . Terminal Hacks . | . . . Fabricator Hacks . | . . . Repair Station Hacks . | . . . Recycling Unit Hacks . | . . . Scanalyzer . | . . . Garrison Access Hacks . | . . . Unauthorized Hacks . | . . . Terminals . | . . . Fabricators . | . . . Repair Stations . | . . . Recycling Units . | . . . Scanalyzers . | . . . Garrison Access . | . . . Data Cores Recovered . | . . . Used . | . . . Hacking Detections . | . . . Full Trace Events . | . . . Feedback Events . | . . . Feedback Blocked . | . . . Robot Schematics Acquired . | . . . Robots Built . | . . . Authchips . | . . . Time . | . . . Total Robot Build Rating . | . . . Part Schematics Acquired . | . . . Parts Built . | . . . Authchips . | . . . Time . | . . . Total Part Build Rating . | . . . Part Studies Acquired . | . . . Parts Repaired . | . . . Time . | . . . Parts Recycled . | . . . Recycled Matter . | . . . Retrieved Matter . | . . . Retrieved Components . | . . . Parts Scanalyzed . | . . . Part Schematics Acquired . | . . . Parts Damaged . | . . . Bothacking | -11 -10 -9 ------------ Run | Yrd Mat Mat Used RIF Installer . | . . . Robots Hacked . | . . . Non-combat . | . . . Combat . | . . . Robot Hacks Applied . | . . . Relay Couplers Released . | . . . Fabnet Peak Effective % . | . . . Robots Rewired . | . . . Allies Hacked . | . . . Hacks Repelled . | . . . Allies | -11 -10 -9 -------- Run | Yrd Mat Mat Total Allies . | . . . Largest Group . | . . . Highest-Rated Group . | . . . Highest-Rated Ally . | . . . Total Orders . | . . . Ally Attacks . | . . . Total Damage . | . . . Kills . | . . . Allies Corrupted . | . . . Allies Melted . | . . . Intel | -11 -10 -9 ------- Run | Yrd Mat Mat Active Infowar (turns) 44 | . 38 6 ECM 44 | . 38 6 Robot Analysis Total . | . . . Derelict Logs Recovered . | . . . Drone Launches . | . . . Drone Recoveries . | . . . Exploration | -11 -10 -9 ------------- Run | Yrd Mat Mat Turns Passed 297 | 15 268 14 Spaces Moved 317 | 29 277 11 Core 136 | 29 107 . Treads . | . . . Legs . | . . . Wheels . | . . . Hover 181 | . 170 11 Flight . | . . . Fastest Speed 50 | 50 50 56 Average Speed 60 | 50 61 77 Slowest Speed 116 | 50 116 116 Overloaded Moves . | . . . Propulsion Burnouts . | . . . Robots Hopped . | . . . Potential Cave-ins . | . . . Cave-ins Triggered . | . . . Exploration Rate (%) 20 | 4 52 4 Regions Visited 2 Branch Regions . Pre-discovered Areas . | . . . Known Exits Taken . | . . . Unknown Exits Taken 2 | 1 1 . Scrap Searched . | . . . Spaces Dug . | . . . Terrain Destroyed 91 | . 72 19 Melee . | . . . Projectile . | . . . AOE 91 | . 72 19 Terrain Rammed . | . . . Walls Destroyed . | . . . Machines Disabled . | . . . Actions | -11 -10 -9 --------- Run | Yrd Mat Mat Total 406 | 29 362 15 Wait 68 | . 68 . Move 316 | 29 276 11 Hop . | . . . Pick Up 1 | . 1 . Fast Attach 6 | . 6 . Attach . | . . . Detach 1 | . . 1 Swap . | . . . Drop 1 | . . 1 Fire 13 | . 11 2 Melee . | . . . Ram . | . . . Kick . | . . . Crush . | . . . Escape Stasis . | . . . Rewire . | . . . Trap . | . . . Miscellaneous . | . . . Route ------- -11/Scrapyard -10/Materials (discovered 2 exits: [*Mat x2]) -9/Materials History --------- Turn | Location | Event 5 | -11/Scrapyard | Discovered new exit (range 15) 16 | -11/Scrapyard | Entered Materials 206 | -10/Materials | Discovered new exit (range 13) 222 | -10/Materials | Discovered new exit (range 16) 284 | -10/Materials | Entered another Materials area 284 | -9/Materials | Evolved 2 slots: Propulsion x1, Utility x1 298 | -9/Materials | Self-destructed Last Messages --------------- 00276_ K-01 Serf collects debris. 00277_ U-05 Engineer lays Concrete. 00279_ K-01 Serf collects debris. 00279_ U-05 Engineer lays Concrete. 00282_ Triggered Shock Trap. 00282_ The floor emits a surge of raw power. 00282_ System corrupted (+1). 00283_ Triggered Shock Trap. 00283_ The floor emits a surge of raw power. 00283_ System corrupted (+2). PARAMETERS=PROPULSION+1,UTILITY+1 LOCATION=UNKNOWN GOAL=ESCAPE 00289_ Dropped Ion Engine. 00294_ W-16 Scout sends out distress signal. 00296_ TF Node disabled. 00296_ Sensor Array tumbles out of TF Node. 00296_ Signal Interpreter tumbles out of TF Node. 00298_ Hover Unit destroyed. Map ----- +----------------------------------------------------+ | | | | | | | | | | | | | | | ?????????????????????????????????????????????????? | | ?????????????????????????????????????????????????? | | ?????????????????????????????????????????????????? | | ?????????????????????????????????????????????????? | | ?????????????????????????????????????????????????? | | ?????????????????????????????????????????????????? | | ?????????????????????????????????????????????????? | | ?????????????????????????????????????????????????? | | ?????????????????????????????????????????????????? | | ?????????????????????????????????????????????????? | | ?????????????????????????????????????????????????? | | ?????????????????##########??????????????????????? | | ?????????????????# #??????????????????????? | | ?????????????##### #??????????????????????? | | ?????????????# # #??????????????????????? | | ?????????????# # !! #?????####?????????????? | | ?????????????# # !! #??# ##????????????? | | ?????????????# +* ! # #????????????? | | ?????????????# # @/ ! Y????????? | | ?????????????# # # w ????????? | | ???????????? # #?? ##???????????? | | ?????????? ##########????# ## #????????????? | | ????????? #???????????????????????????????? | | ??????? ???????????????????????????????? | | ?????? ???????????????????????????????? | | ?????######### ???????????????????????????????? | | ?????????????# ???????????????????????????????? | | ?????????????# ???????????????????????????????? | | ?????????????# ??????????????????????????????? | | ?????????????# ##??????????????????????????????? | | ?????????????# ????????????????????????????????? | | ?????????????# ????????????????????????????????? | | ?????????????? ????????????????????????????????? | | ?????????????????????????????????????????????????? | | ?????????????????????????????????????????????????? | | ?????????????????????????????????????????????????? | | ?????????????????????????????????????????????????? | | ?????????????????????????????????????????????????? | | ?????????????????????????????????????????????????? | | ?????????????????????????????????????????????????? | | ?????????????????????????????????????????????????? | | ?????????????????????????????????????????????????? | | ?????????????????????????????????????????????????? | +----------------------------------------------------+ Best States ------------- Heat Dissipation 28 Energy Generation 10 Energy Capacity 250 Matter Stores 300 Matter Capacity 300 Sight Range 16 Terrain Scan Density 10 ECM Strength 1 Evasion (%) 53 Item Schematics ----------------- None Robot Schematics ------------------ None Fabricated ------------ Nothing Repaired ---------- Nothing Studied --------- None Alien Tech Used ----------------- None Achievements -------------- None Challenges ------------ None Game ------ Seed FlyingGatlingStrikerail Manual? 0 Play Time 00:03:56 Cumulative 53.2 hours Start 2026.09.04 @ 14:54:00 End 2026.09.04 @ 14:58:16 Sessions 1 Manual Loads 0 Difficulty Rogue Special Mode None Game No. 136 Rogue 136 Adventurer 0 Explorer 0 Win Type - Total 3 Types 3/0/0/0/0/0/0/0/0/0 Lore% 47 Gallery% 41 Achievement% 43 Wizard Run 0 Options --------- Layout 2 ASCII 0 Keyboard 0 Movement Arrows Keybinds 0 Fullscreen 1 Font 16/SmallcapsGlow Map View 50x49 Zoom Use 0% Tactical HUD 1 Map Filters NONE Filters NONE Steam SD RUN: 7d1c4557-60b7-4d18-95c5-0e007327f70a